bitfinex/quotes_BTCUSD_20250711
["timestamp","ask_amount","ask_price","bid_price","bid_amount"]
[1752256826001,0.00214938,117610.0,117600.0,0.73493741]
[1752256826187,0.00214938,117610.0,117600.0,1.18929639]
[1752256826407,0.00214938,117610.0,117600.0,1.1754104]
[1752256826566,0.00214938,117610.0,117600.0,1.18391351]
[1752256826780,0.00214938,117610.0,117600.0,1.1754104]
[1752256826962,0.00214938,117610.0,117600.0,0.72105135]
[1752256827162,0.00214938,117610.0,117600.0,1.18391351]
[1752256827378,0.00414938,117610.0,117600.0,1.18391358]
[1752256827553,0.00414938,117610.0,117600.0,1.17541055]
[1752256827969,0.00414938,117610.0,117600.0,1.18391358]
[1752256828225,0.00414938,117610.0,117600.0,0.73805756]
[1752256828431,0.00414938,117610.0,117600.0,1.18391366]
[1752256828636,0.00214938,117610.0,117600.0,0.72955453]
[1752256828813,0.00214938,117610.0,117600.0,1.17541055]
[1752256829283,0.00214938,117610.0,117600.0,1.17541062]
[1752256829503,0.00214938,117610.0,117600.0,0.54247993]
[1752256830053,0.00414938,117610.0,117600.0,0.54247993]
[1752256830456,0.00214938,117610.0,117600.0,0.54247993]
[1752256830883,0.00314938,117610.0,117600.0,0.54247993]
[1752256831263,0.00314938,117610.0,117600.0,0.71254795]
[1752256831747,0.00314938,117610.0,117600.0,0.7210512]
[1752256831898,0.00314938,117610.0,117600.0,0.72955438]
[1752256832128,0.00314938,117610.0,117600.0,0.7210512]
[1752256832707,0.00314938,117610.0,117600.0,0.73805734]
[1752256833090,0.00314938,117610.0,117600.0,0.7210512]
[1752256833514,0.00314938,117610.0,117600.0,0.72955438]
[1752256833684,0.00314938,117610.0,117600.0,0.73805749]
[1752256833883,0.00314938,117610.0,117600.0,0.74656052]
[1752256834082,0.00314938,117610.0,117600.0,1.20091943]
[1752256834734,0.00314938,117610.0,117600.0,1.18391351]
[1752256835293,0.00314938,117610.0,117600.0,1.19241654]
[1752256835506,0.00314938,117610.0,117600.0,1.20091936]
[1752256836796,0.00314938,117610.0,117600.0,1.18391351]
[1752256836967,0.00314938,117610.0,117600.0,1.16690737]
[1752256837211,0.00314938,117610.0,117600.0,1.18391394]
[1752256837763,0.00314938,117610.0,117600.0,0.54247993]
[1752256838050,0.00314938,117610.0,117600.0,0.72955431]
[1752256838397,0.00314938,117610.0,117600.0,0.7210512]
[1752256838600,0.00314938,117610.0,117600.0,0.73805749]
[1752256839251,0.00314938,117610.0,117600.0,1.18391351]
[1752256839457,0.00314938,117610.0,117600.0,1.20091936]
[1752256840318,0.44585602,117640.0,117620.0,0.0321]
[1752256840537,0.80044664,117640.0,117630.0,0.34858993]
[1752256840865,0.80257664,117640.0,117630.0,0.34858993]
[1752256841446,0.81345812,117640.0,117630.0,0.34858993]
[1752256841679,0.81645812,117640.0,117630.0,0.34858993]
[1752256841893,0.3706021,117640.0,117630.0,0.34858993]
[1752256842098,0.81645812,117640.0,117630.0,0.34858993]
[1752256842466,0.3706021,117640.0,117630.0,0.39858993]
[1752256842632,0.81445812,117640.0,117630.0,0.39858993]
[1752256843186,0.81645812,117640.0,117630.0,0.55491993]
[1752256843608,0.81950812,117640.0,117630.0,0.55491993]
[1752256844227,0.83600812,117640.0,117630.0,0.55491993]
[1752256848942,0.81950812,117640.0,117630.0,0.55491993]
[1752256850029,0.83580812,117640.0,117630.0,0.55491993]
[1752256851671,0.81950812,117640.0,117630.0,0.55491993]
[1752256851848,0.81645812,117640.0,117630.0,0.55491993]
[1752256854619,0.3706021,117640.0,117630.0,0.55491993]
[1752256854841,0.81645812,117640.0,117630.0,0.55491993]
[1752256855080,0.81645812,117640.0,117630.0,0.57001993]
[1752256856310,0.81645812,117640.0,117630.0,0.57202993]
[1752256856539,0.81645812,117640.0,117630.0,0.57512993]
[1752256858007,0.81645812,117640.0,117630.0,0.57202993]
[1752256858818,0.81645812,117640.0,117630.0,0.55491993]
[1752256862440,0.81645812,117640.0,117630.0,0.59122993]
[1752256865911,0.3706021,117640.0,117630.0,0.59122993]
[1752256866122,0.81645812,117640.0,117630.0,0.59122993]
[1752256866355,0.35393125,117640.0,117630.0,0.59122993]
[1752256866557,0.79978727,117640.0,117630.0,0.59122993]
[1752256867112,0.80183727,117640.0,117630.0,0.59122993]
[1752256867311,0.79978727,117640.0,117630.0,0.59122993]
[1752256871195,0.34504977,117640.0,117630.0,0.59122993]
[1752256872056,0.00504977,117640.0,117630.0,0.59122993]
[1752256872260,0.00504977,117640.0,117630.0,0.59973116]
[1752256872582,0.00504977,117640.0,117630.0,0.77825697]
[1752256872785,0.00504977,117640.0,117630.0,0.77825689]
[1752256872958,0.00204977,117640.0,117630.0,0.77825689]
[1752256873379,4.977e-05,117640.0,117630.0,0.76975581]
[1752256873585,4.977e-05,117640.0,117630.0,0.59973116]
[1752256873799,4.977e-05,117640.0,117630.0,0.76975581]
[1752256874009,4.977e-05,117640.0,117630.0,0.59973116]
[1752256874248,4.977e-05,117640.0,117630.0,0.59122993]
[1752256875158,0.45614392,117650.0,117640.0,0.0304]
[1752256875307,0.45614392,117650.0,117640.0,0.37943993]
[1752256875509,0.45614392,117650.0,117640.0,0.53884993]
[1752256876676,0.45814392,117650.0,117640.0,0.53884993]
[1752256877322,0.0132879,117650.0,117640.0,0.53884993]
[1752256877532,0.45914392,117650.0,117640.0,0.53884993]
[1752256877715,0.00420008,117650.0,117640.0,0.53884993]
[1752256879189,0.00420008,117650.0,117640.0,0.56451378]
[1752256880661,0.4500561,117650.0,117640.0,0.56451378]
[1752256881485,0.00420008,117650.0,117640.0,0.56451378]
[1752256881700,0.4500561,117650.0,117640.0,0.56451378]
[1752256882409,0.00420008,117650.0,117640.0,0.56451378]
[1752256882656,0.4500561,117650.0,117640.0,0.56451378]
[1752256883092,0.00420008,117650.0,117640.0,0.56451378]
[1752256883305,0.00420008,117650.0,117640.0,0.74302441]
[1752256883512,0.00420008,117650.0,117640.0,0.73452398]
[1752256883719,0.00420008,117650.0,117640.0,0.7770057]
[1752256883950,0.00420008,117650.0,117640.0,0.77700577]
[1752256884172,0.4490561,117650.0,117640.0,0.58999478]
[1752256884385,0.4490561,117650.0,117640.0,0.56451378]
[1752256884792,0.4510361,117650.0,117640.0,0.53888993]
[1752256885011,0.91236297,117650.0,117640.0,0.15631]
[1752256885243,1.28376297,117650.0,117640.0,0.15631]
[1752256886498,0.83790695,117650.0,117640.0,0.15631]
[1752256887416,1.28376297,117650.0,117640.0,0.15631]
[1752256888029,0.83790695,117650.0,117640.0,0.15631]
[1752256889988,0.80357695,117650.0,117640.0,0.15631]
[1752256890982,0.34120008,117650.0,117640.0,0.27746993]
[1752256891183,0.00120008,117650.0,117640.0,0.27746993]
[1752256891355,0.4470561,117650.0,117640.0,0.27736993]
[1752256892339,0.4470561,117650.0,117640.0,0.27726993]
[1752256893276,0.4470561,117650.0,117640.0,0.27716993]
[1752256893826,0.4470561,117650.0,117640.0,0.27706993]
[1752256894885,0.4470561,117650.0,117640.0,0.27696993]
[1752256895444,0.00120008,117650.0,117640.0,0.96128242]
[1752256895631,0.00120008,117650.0,117640.0,0.3454162]
[1752256895830,0.00120008,117650.0,117640.0,0.52382676]
[1752256896112,0.00120008,117650.0,117640.0,0.52382683]
[1752256896299,0.4470561,117650.0,117640.0,0.27686993]
[1752256897121,0.00120008,117650.0,117640.0,0.27686993]
[1752256898658,0.00120008,117650.0,117640.0,0.90973695]
[1752256898873,0.00120008,117650.0,117640.0,0.91823709]
[1752256899087,0.00120008,117650.0,117640.0,0.92673716]
[1752256899308,0.00120008,117650.0,117640.0,0.91823709]
[1752256899529,0.00120008,117650.0,117640.0,0.44688013]
[1752256899752,0.00120008,117650.0,117640.0,0.45538056]
[1752256900827,0.00120008,117650.0,117640.0,0.46378085]
[1752256901034,0.00120008,117650.0,117640.0,0.46378092]
[1752256901246,0.00120008,117650.0,117640.0,0.45528056]
[1752256901458,0.00120008,117650.0,117640.0,0.44678013]
[1752256902305,0.00120008,117650.0,117640.0,0.45528064]
[1752256902541,0.00120008,117650.0,117640.0,0.44678013]
[1752256903570,0.00120008,117650.0,117640.0,0.45528064]
[1752256903773,0.00120008,117650.0,117640.0,0.44678013]
[1752256904374,0.00120008,117650.0,117640.0,0.27676993]
[1752256905102,0.4470561,117650.0,117640.0,0.27676993]
[1752256907168,0.4491261,117650.0,117640.0,0.26106993]
[1752256907403,0.4491261,117650.0,117640.0,0.25603993]
[1752256907617,0.4672961,117650.0,117640.0,0.24103993]
[1752256907837,0.8231961,117650.0,117640.0,0.24103993]
[1752256908078,0.83773695,117650.0,117640.0,0.24103993]
[1752256908297,0.83753695,117650.0,117640.0,0.24103993]
[1752256909382,0.83753695,117650.0,117640.0,0.15561]
[1752256911737,0.82163695,117650.0,117640.0,0.15561]
[1752256912367,0.80346695,117650.0,117640.0,0.15561]
[1752256913175,0.35761093,117650.0,117640.0,0.15561]
[1752256913354,0.35761093,117650.0,117640.0,0.17141]
[1752256913569,0.80346695,117650.0,117640.0,0.17141]
[1752256914695,0.7889261,117650.0,117640.0,0.25683993]
[1752256915390,0.34100008,117650.0,117640.0,0.27736993]
[1752256915903,0.7868561,117650.0,117640.0,0.27736993]
[1752256916825,0.7889261,117650.0,117640.0,0.27736993]
[1752256917049,0.7889261,117650.0,117640.0,0.24103993]
[1752256917743,0.34307008,117650.0,117640.0,0.24103993]
[1752256917928,0.7889261,117650.0,117640.0,0.24103993]
[1752256919257,0.83733695,117650.0,117640.0,0.50187993]
[1752256919454,0.96777695,117650.0,117640.0,0.15561]
[1752256920927,1.41363297,117650.0,117640.0,0.15561]
[1752256922001,1.28319297,117650.0,117640.0,0.15561]
[1752256922143,0.96777695,117650.0,117640.0,0.15561]
[1752256922741,0.96777695,117650.0,117640.0,0.97561]
[1752256924645,0.83733695,117650.0,117640.0,0.97561]
[1752256924798,0.96777695,117650.0,117640.0,0.97561]
[1752256925001,0.83733695,117650.0,117640.0,0.97561]
[1752256925220,0.96777695,117650.0,117640.0,0.97561]
[1752256926131,0.83733695,117650.0,117640.0,0.97561]
[1752256926331,0.95207695,117650.0,117640.0,0.97561]
[1752256926875,0.48805093,117650.0,117640.0,1.26765]
[1752256927104,0.93390695,117650.0,117640.0,1.25215]
[1752256927534,0.93390695,117650.0,117640.0,1.23645]
[1752256927734,0.9193661,117650.0,117640.0,1.23645]
[1752256927850,0.93390695,117650.0,117640.0,1.23645]
[1752256929421,0.93390695,117650.0,117640.0,1.23574972]
[1752256932485,1.41303297,117650.0,117640.0,0.97490972]
[1752256935110,0.96717695,117650.0,117640.0,0.97490972]
[1752256936303,0.95197695,117650.0,117640.0,0.97490972]
[1752256936422,0.35761093,117650.0,117640.0,0.97490972]
[1752256936626,0.35761093,117650.0,117640.0,0.99645972]
[1752256936627,0.93390695,117650.0,117640.0,0.99645972]
[1752256936836,0.93390695,117650.0,117640.0,1.25421972]
[1752256940028,0.93390695,117650.0,117640.0,1.25224972]
[1752256942539,0.93390695,117650.0,117640.0,1.27322972]
[1752256942741,0.80346695,117650.0,117640.0,1.27322972]
[1752256942955,0.93183695,117650.0,117640.0,1.27322972]
[1752256943479,0.48598093,117650.0,117640.0,1.27322972]
[1752256943682,0.93183695,117650.0,117640.0,1.27322972]
[1752256944118,0.93398695,117650.0,117640.0,1.27322972]
[1752256944736,0.80354695,117650.0,117640.0,1.27322972]
[1752256947246,0.80139695,117650.0,117640.0,1.27322972]
[1752256948183,0.4468561,117650.0,117640.0,1.35865965]
[1752256948495,0.7868561,117650.0,117640.0,1.35865965]
[1752256950615,0.34100008,117650.0,117640.0,1.35865965]
[1752256950819,0.00100008,117650.0,117640.0,1.35865965]
[1752256951595,0.4468561,117650.0,117640.0,1.35865965]
[1752256959802,0.00100008,117650.0,117640.0,1.35865965]
[1752256960015,0.4468561,117650.0,117640.0,1.35865965]
[1752256961381,0.4468561,117650.0,117640.0,1.35752265]
[1752256962006,1.41410297,117650.0,117640.0,0.97377272]
[1752256962190,1.4995329,117650.0,117640.0,0.97377272]
[1752256962623,1.4995329,117650.0,117640.0,0.96528165]
[1752256962830,1.56653167,117650.0,117640.0,0.9353129]
[1752256963201,1.47515772,117650.0,117640.0,0.82]
[1752256963409,0.03054085,117610.0,117600.0,0.002]
[1752256963642,1.39476289,117610.0,117600.0,0.00204977]
[1752256963855,0.82751316,117610.0,117600.0,0.00204977]
[1752256964069,0.96088316,117610.0,117600.0,0.00204977]
[1752256964283,1.42273918,117610.0,117600.0,0.00204977]
[1752256964501,0.97688316,117610.0,117600.0,0.00204977]
[1752256964709,1.42273918,117610.0,117600.0,0.00204977]
[1752256965574,0.97688316,117610.0,117600.0,0.00204977]
[1752256966425,0.95787316,117610.0,117600.0,0.00204977]
[1752256966659,0.96085316,117610.0,117600.0,0.00204977]
[1752256967078,0.95787316,117610.0,117600.0,0.00204977]
[1752256970627,0.80254687,117610.0,117600.0,0.00741977]
[1752256970839,0.4704,117610.0,117600.0,0.1234497]
[1752256971472,0.91625602,117610.0,117600.0,0.1734497]
[1752256975514,0.4704,117610.0,117600.0,0.1734497]
[1752256975718,0.91625602,117610.0,117600.0,0.1734497]
[1752256976612,0.4704,117610.0,117600.0,0.1734497]
[1752256976819,0.91625602,117610.0,117600.0,0.1734497]
[1752256978902,0.4704,117610.0,117600.0,0.1734497]
[1752256979109,0.91625602,117610.0,117600.0,0.1734497]
[1752256979758,0.78585602,117610.0,117600.0,0.1734497]
[1752256979971,0.91625602,117610.0,117600.0,0.1734497]
[1752256980433,0.91835602,117610.0,117600.0,0.1374797]
[1752256980638,0.93289687,117610.0,117600.0,0.1374797]
[1752256980879,0.48704085,117610.0,117600.0,0.1374797]
[1752256981168,0.80249687,117610.0,117600.0,0.1742497]
[1752256981386,0.93289687,117610.0,117600.0,0.1742497]
[1752256981602,0.93289687,117610.0,117600.0,0.1538797]
[1752256981810,0.93289687,117610.0,117600.0,0.1374797]
[1752256982704,0.93289687,117610.0,117600.0,0.1537797]
[1752256984334,0.93289687,117610.0,117600.0,0.1374797]
[1752256985220,0.48704085,117610.0,117600.0,0.1537797]
[1752256985440,0.93289687,117610.0,117600.0,0.1537797]
[1752256986523,0.93289687,117610.0,117600.0,0.1699797]
[1752256987620,0.35664085,117610.0,117600.0,0.1753497]
[1752256987866,0.93285687,117610.0,117600.0,0.1753497]
[1752256988070,0.93285687,117610.0,117600.0,0.1721197]
[1752256989022,0.93285687,117610.0,117600.0,0.1699797]
[1752256989636,0.93285687,117610.0,117600.0,0.1537797]
[1752256989835,0.93583687,117610.0,117600.0,0.05204977]
[1752256990135,1.41409289,117610.0,117600.0,0.05204977]
[1752256990337,1.41409289,117610.0,117600.0,0.00204977]
[1752256990785,1.49952282,117610.0,117600.0,0.00204977]
[1752256991450,1.50152282,117610.0,117600.0,0.00204977]
[1752256991689,1.50452282,117610.0,117600.0,0.00204977]
[1752256991941,1.52151036,117610.0,117600.0,0.00204977]
[1752256992429,1.52851036,117610.0,117600.0,0.00204977]
[1752256994566,1.50652282,117610.0,117600.0,0.00204977]
[1752256999323,1.55652282,117610.0,117600.0,0.00204977]
[1752256999527,1.57851036,117610.0,117600.0,0.00204977]
[1752257000034,1.59681316,117610.0,117600.0,0.00204977]
[1752257001145,1.62231916,117610.0,117600.0,0.00204977]
[1752257002333,1.60033162,117610.0,117600.0,0.00204977]
[1752257003549,1.58202882,117610.0,117600.0,0.00204977]
[1752257004838,1.0861728,117610.0,117600.0,0.00204977]
[1752257005038,1.0282668,117610.0,117600.0,0.00204977]
[1752257005249,1.48922282,117610.0,117600.0,0.00204977]
[1752257005874,1.50522282,117610.0,117600.0,0.00204977]
[1752257006716,1.50965616,117610.0,117600.0,0.00204977]
[1752257011600,1.49365616,117610.0,117600.0,0.00204977]
[1752257012415,1.34521616,117610.0,117600.0,0.00204977]
[1752257012619,1.47114282,117610.0,117600.0,0.01704977]
[1752257012836,1.47114282,117610.0,117600.0,0.00204977]
[1752257013035,1.47421282,117610.0,117600.0,0.00204977]
[1752257013587,1.47421282,117610.0,117600.0,0.05204977]
[1752257013991,1.47421282,117610.0,117600.0,0.00204977]
[1752257018610,1.47114282,117610.0,117600.0,0.05204977]
[1752257018778,1.47114282,117610.0,117600.0,0.08314977]
[1752257019624,1.47114282,117610.0,117600.0,0.03314977]
[1752257019897,1.47114282,117610.0,117600.0,0.01714977]
[1752257020298,1.47420282,117610.0,117600.0,0.01714977]
[1752257020475,1.49253057,117610.0,117600.0,0.01714977]
[1752257020885,1.49253057,117610.0,117600.0,0.00204977]
[1752257021685,1.48947057,117610.0,117600.0,0.00204977]
[1752257022479,1.48947249,117610.0,117600.0,0.00204977]
[1752257023488,1.48947249,117610.0,117600.0,0.01744977]
[1752257023489,1.35911249,117610.0,117600.0,0.01744977]
[1752257023829,1.47110282,117610.0,117600.0,0.08354977]
[1752257024833,1.34078282,117610.0,117600.0,0.08354977]
[1752257025008,1.46900282,117610.0,117600.0,0.08868977]
[1752257026116,1.47105282,117610.0,117600.0,0.08868977]
[1752257027176,1.47105282,117610.0,117600.0,0.06744977]
[1752257027376,1.47105282,117610.0,117600.0,0.05204977]
[1752257027584,1.50874631,117610.0,117600.0,0.05204977]
[1752257027939,1.49244631,117610.0,117600.0,0.00204977]
[1752257032144,1.36212631,117610.0,117600.0,0.01714977]
[1752257032344,1.48938631,117610.0,117600.0,0.01714977]
[1752257033666,1.48938631,117610.0,117600.0,0.06714977]
[1752257033866,1.48938631,117610.0,117600.0,0.08344977]
[1752257036349,1.48938631,117610.0,117600.0,0.08660977]
[1752257038040,1.48938631,117610.0,117600.0,0.08344977]
[1752257039942,0.82573036,117610.0,117600.0,0.08861977]
[1752257040148,0.92317602,117610.0,117600.0,0.08861977]
[1752257040768,0.93771687,117610.0,117600.0,0.08861977]
[1752257041233,0.80739687,117610.0,117600.0,0.08861977]
[1752257041401,0.93771687,117610.0,117600.0,0.08861977]
[1752257044752,1.38357289,117610.0,117600.0,0.08861977]
[1752257045637,1.38554289,117610.0,117600.0,0.08861977]
[1752257046043,1.38860289,117610.0,117600.0,0.06714977]
[1752257046675,1.38860289,117610.0,117600.0,0.05204977]
[1752257046888,1.47403282,117610.0,117600.0,0.05204977]
[1752257047100,1.52286654,117610.0,117600.0,0.05204977]
[1752257047308,1.52286644,117610.0,117600.0,0.05204977]
[1752257047512,1.52286668,117610.0,117600.0,0.05204977]
[1752257048121,1.50786668,117610.0,117600.0,0.05204977]
[1752257048763,1.50786668,117610.0,117600.0,0.00204977]
[1752257048764,1.36204668,117610.0,117600.0,0.00204977]
[1752257048970,1.0250768,117610.0,117600.0,0.03444977]
[1752257049174,1.34065282,117610.0,117600.0,0.03444977]
[1752257049386,0.80739687,117610.0,117600.0,0.03961977]
[1752257049597,0.92313602,117610.0,117600.0,0.03961977]
[1752257050216,0.93767687,117610.0,117600.0,0.03961977]
[1752257051276,0.93767687,117610.0,117600.0,0.08961977]
[1752257052266,0.93964687,117610.0,117600.0,0.08961977]
[1752257053926,1.38550289,117610.0,117600.0,0.08444977]
[1752257055275,1.49232616,117610.0,117600.0,0.05204977]
[1752257055548,1.39304616,117610.0,117600.0,0.05204977]
[1752257055745,1.52332616,117610.0,117600.0,0.05204977]
[1752257057187,1.52332616,117610.0,117600.0,0.00204977]
[1752257058765,1.52328616,117610.0,117600.0,0.00204977]
[1752257061558,0.04564085,117590.0,117580.0,0.002]
[1752257061886,1.0993368,117590.0,117580.0,0.00214938]
[1752257062087,1.54822282,117590.0,117580.0,0.00214938]
[1752257062288,1.08959403,117590.0,117580.0,0.00214938]
[1752257062647,1.10529403,117590.0,117580.0,0.00214938]
[1752257063910,1.10929403,117590.0,117580.0,0.00214938]
[1752257064856,0.96331403,117590.0,117580.0,0.00214938]
[1752257065028,1.04056403,117590.0,117580.0,0.01724938]
[1752257065251,1.04356403,117590.0,117580.0,0.00214938]
[1752257065472,1.04659403,117590.0,117580.0,0.00214938]
[1752257065690,1.0282668,117590.0,117580.0,0.00214938]
[1752257066569,0.44910078,117590.0,117580.0,0.00214938]
[1752257066809,1.0252368,117590.0,117580.0,0.01854938]
[1752257067016,1.0282768,117590.0,117580.0,0.00214938]
[1752257068764,1.55603282,117590.0,117580.0,0.00214938]
[1752257069191,1.57432456,117590.0,117580.0,0.00214938]
[1752257069833,1.55902456,117590.0,117580.0,0.00214938]
[1752257070266,1.55902015,117590.0,117580.0,0.00214938]
[1752257071320,1.11316413,117590.0,117580.0,0.00214938]
[1752257071553,1.55902015,117590.0,117580.0,0.00214938]
[1752257071763,1.55901732,117590.0,117580.0,0.00214938]
[1752257071984,1.54073282,117590.0,117580.0,0.00214938]
[1752257073924,1.55901799,117590.0,117580.0,0.00214938]
[1752257074345,1.54073282,117590.0,117580.0,0.00214938]
[1752257074585,1.57451921,117590.0,117580.0,0.00214938]
[1752257075272,1.55901921,117590.0,117580.0,0.00214938]
[1752257076505,1.11316319,117590.0,117580.0,0.00214938]
[1752257077795,1.06316319,117590.0,117580.0,0.00214938]
[1752257079117,0.91628319,117590.0,117580.0,0.00214938]
[1752257079334,1.0231068,117590.0,117580.0,0.03626938]
[1752257079590,1.0231068,117590.0,117580.0,0.03926938]
[1752257080110,1.0251668,117590.0,117580.0,0.03926938]
[1752257082388,0.8928268,117590.0,117580.0,0.03926938]
[1752257082604,0.92313602,117590.0,117580.0,0.03926938]
[1752257082825,0.79285602,117590.0,117580.0,0.03926938]
[1752257083028,0.58313602,117590.0,117580.0,0.03926938]
[1752257083243,0.93767687,117590.0,117580.0,0.08926938]
[1752257084985,0.93467687,117590.0,117580.0,0.08926938]
[1752257085144,0.9383011,117590.0,117580.0,0.08926938]
[1752257085359,0.93067687,117590.0,117580.0,0.08926938]
[1752257085808,0.93567687,117590.0,117580.0,0.08926938]
[1752257086155,0.93267687,117590.0,117580.0,0.08926938]
[1752257086592,0.93467687,117590.0,117580.0,0.08926938]
[1752257093986,0.80439687,117590.0,117580.0,0.08926938]
[1752257094214,0.93467687,117590.0,117580.0,0.08926938]
[1752257096336,0.93392146,117590.0,117580.0,0.08926938]
[1752257099969,0.93388146,117590.0,117580.0,0.08926938]
[1752257104556,0.80364146,117590.0,117580.0,0.08926938]
[1752257104764,0.344,117590.0,117580.0,0.08926938]
[1752257104966,0.47424,117590.0,117580.0,0.08926938]
[1752257105184,0.48878085,117590.0,117580.0,0.08926938]
[1752257105694,0.93463687,117590.0,117580.0,0.08926938]
[1752257105920,0.93263687,117590.0,117580.0,0.08926938]
[1752257106372,0.93063687,117590.0,117580.0,0.08926938]
[1752257106814,0.93163687,117590.0,117580.0,0.08926938]
[1752257107052,0.80139687,117590.0,117580.0,0.08926938]
[1752257107279,0.93163687,117590.0,117580.0,0.08926938]
[1752257108918,0.93263687,117590.0,117580.0,0.08926938]
[1752257114177,0.80239687,117590.0,117580.0,0.08926938]
[1752257114470,1.0381568,117590.0,117580.0,0.05214938]
[1752257114682,1.0636638,117590.0,117580.0,0.05214938]
[1752257114893,1.0788638,117590.0,117580.0,0.05214938]
[1752257115524,1.0788638,117590.0,117580.0,0.00214938]
[1752257115525,1.59316609,117590.0,117580.0,0.00214938]
[1752257115934,1.66149412,117590.0,117580.0,0.00214938]
[1752257116168,1.67099934,117590.0,117580.0,0.00214938]
[1752257116409,1.2156381,117590.0,117580.0,0.00214938]
[1752257116638,1.19731007,117590.0,117580.0,0.00214938]
[1752257117085,1.19631007,117590.0,117580.0,0.00214938]
[1752257117297,1.19531007,117590.0,117580.0,0.00214938]
[1752257117512,1.64116609,117590.0,117580.0,0.00214938]
[1752257117736,1.64416609,117590.0,117580.0,0.00214938]
[1752257117939,1.6654818,117590.0,117580.0,0.00214938]
[1752257119025,1.57871982,117590.0,117580.0,0.00214938]
[1752257120850,1.61990162,117590.0,117580.0,0.00214938]
[1752257121518,0.37024085,117580.0,117560.0,0.002]
[1752257121740,1.46388282,117570.0,117560.0,0.002]
[1752257122188,1.49257482,117570.0,117560.0,0.002]
[1752257123913,1.49357482,117570.0,117560.0,0.002]
[1752257124584,1.49457482,117570.0,117560.0,0.002]
[1752257125444,1.5601459,117570.0,117560.0,0.002]
[1752257125668,1.6101459,117570.0,117560.0,0.002]
[1752257125888,1.62842376,117570.0,117560.0,0.002]
[1752257126123,1.6101459,117570.0,117560.0,0.002]
[1752257126828,1.6091459,117570.0,117560.0,0.002]
[1752257127057,1.6081459,117570.0,117560.0,0.002]
[1752257127280,1.6141459,117570.0,117560.0,0.002]
[1752257129447,1.6141459,117570.0,117560.0,0.00191726]
[1752257130251,1.6141459,117570.0,117540.0,0.002]
[1752257130252,0.43494085,117560.0,117540.0,0.002]
[1752257130479,1.0331268,117550.0,117540.0,0.00208474]
[1752257130701,1.0331268,117550.0,117540.0,0.00200197]
[1752257130702,1.55278925,117550.0,117540.0,0.00200197]
[1752257130922,1.80912313,117550.0,117540.0,0.00200197]
[1752257131182,0.38665524,117540.0,117520.0,0.0024]
[1752257131408,1.47898282,117530.0,117520.0,0.0024]
[1752257131635,1.48216282,117530.0,117520.0,0.0024]
[1752257131868,1.46706282,117530.0,117520.0,0.0024]
[1752257133505,1.48817282,117530.0,117520.0,0.0024]
[1752257133696,1.50647282,117530.0,117520.0,0.0024]
[1752257134489,1.49017282,117530.0,117520.0,0.0024]
[1752257135154,1.49117282,117530.0,117520.0,0.0024]
[1752257136233,1.50687282,117530.0,117520.0,0.0024]
[1752257137300,1.49117282,117530.0,117520.0,0.0024]
[1752257137797,1.50657282,117530.0,117520.0,0.0024]
[1752257138239,1.49121282,117530.0,117520.0,0.0024]
[1752257139090,1.48803282,117530.0,117520.0,0.0024]
[1752257139550,1.35775282,117530.0,117520.0,0.0024]
[1752257139766,1.35775282,117530.0,117520.0,0.0394]
[1752257139767,1.0402168,117530.0,117520.0,0.0394]
[1752257140482,0.36411,117530.0,117520.0,0.0394]
[1752257140711,0.60028602,117530.0,117520.0,0.0394]
[1752257140918,0.82450687,117530.0,117520.0,0.0394]
[1752257141132,0.82450687,117530.0,117520.0,0.0894]
[1752257141133,0.003,117530.0,117520.0,0.0894]
[1752257141346,0.13348,117530.0,117520.0,0.0894]
[1752257141567,0.57933602,117530.0,117520.0,0.0894]
[1752257141773,0.47348,117530.0,117520.0,0.0894]
[1752257141994,0.01654085,117530.0,117520.0,0.0894]
[1752257142208,0.35654085,117530.0,117520.0,0.0894]
[1752257142427,0.48510085,117530.0,117520.0,0.0894]
[1752257142643,0.93095687,117530.0,117520.0,0.0894]
[1752257143999,0.93095687,117530.0,117520.0,0.0904]
[1752257145068,0.80039687,117530.0,117520.0,0.0904]
[1752257145997,0.35454085,117530.0,117520.0,0.0904]
[1752257146211,0.34,117530.0,117520.0,0.0904]
[1752257146420,0.78585602,117530.0,117520.0,0.0904]
[1752257147085,0.34,117530.0,117520.0,0.0904]
[1752257147290,0.80039687,117530.0,117520.0,0.0904]
[1752257148517,0.80039687,117530.0,117520.0,0.10369111]
[1752257148911,0.35454085,117530.0,117520.0,0.10369111]
[1752257149316,0.34,117530.0,117520.0,0.18912104]
[1752257149520,0.34,117530.0,117520.0,0.63497706]
[1752257149718,8.454e-05,117550.0,117540.0,0.0315]
[1752257149945,8.454e-05,117550.0,117540.0,0.03638]
[1752257150098,0.35462539,117550.0,117540.0,0.03638]
[1752257151165,0.01462539,117550.0,117540.0,0.03638]
[1752257151372,0.01462539,117550.0,117540.0,0.03738]
[1752257161567,0.44957995,117550.0,117540.0,0.03738]
[1752257161776,0.78957995,117550.0,117540.0,0.03738]
[1752257161995,0.35462539,117550.0,117540.0,0.03738]
[1752257162582,0.35062539,117550.0,117540.0,0.03738]
[1752257168810,0.78557995,117550.0,117540.0,0.03738]
[1752257172935,0.79610253,117550.0,117540.0,0.03738]
[1752257177738,0.79814253,117550.0,117540.0,0.03738]
[1752257177942,0.79814253,117550.0,117540.0,0.0169]
[1752257178397,0.79814253,117550.0,117540.0,0.03605]
[1752257178791,0.79814253,117550.0,117540.0,0.03801]
[1752257180582,0.79610253,117550.0,117540.0,0.03801]
[1752257181403,0.35062539,117550.0,117540.0,0.03801]
[1752257181612,0.79610253,117550.0,117540.0,0.03801]
[1752257182769,0.79814253,117550.0,117540.0,0.03801]
[1752257182985,0.79814253,117550.0,117540.0,0.03506]
[1752257185738,0.79814253,117550.0,117540.0,0.03801]
[1752257187307,0.79610253,117550.0,117540.0,0.03801]
[1752257188170,0.78010253,117550.0,117540.0,0.03801]
[1752257190340,0.79464338,117550.0,117540.0,0.03801]
[1752257191213,0.79668338,117550.0,117540.0,0.0331]
[1752257191445,0.81620338,117550.0,117540.0,0.001]
[1752257191661,0.83270338,117550.0,117540.0,0.001]
[1752257192492,0.91813331,117550.0,117540.0,0.001]
[1752257199904,0.47265617,117550.0,117540.0,0.001]
[1752257200123,0.91813331,117550.0,117540.0,0.001]
[1752257201708,0.90163331,117550.0,117540.0,0.001]
[1752257203316,0.88513331,117550.0,117540.0,0.051]
[1752257203538,0.88513331,117550.0,117540.0,0.08621]
[1752257203539,0.78214253,117550.0,117540.0,0.08621]
[1752257204223,0.79668338,117550.0,117540.0,0.08621]
[1752257205335,0.35120624,117550.0,117540.0,0.08621]
[1752257205560,0.79668338,117550.0,117540.0,0.08621]
[1752257208040,0.34916624,117550.0,117540.0,0.08621]
[1752257208486,0.79464338,117550.0,117540.0,0.08621]
[1752257210263,0.79464338,117550.0,117540.0,0.051]
[1752257210264,0.79663338,117550.0,117540.0,0.051]
[1752257210464,0.79963338,117550.0,117540.0,0.051]
[1752257210691,0.81573338,117550.0,117540.0,0.051]